bitfinex/quotes_ETHUSD_20250414
["timestamp","ask_amount","ask_price","bid_price","bid_amount"]
[1744666263852,6.13459,1630.1,1629.8,14.45548213]
[1744666264051,6.13459,1630.1,1629.8,8.258523]
[1744666264252,12.26867,1630.2,1629.8,14.45548214]
[1744666264453,12.26867,1630.2,1629.8,14.394133]
[1744666264974,6.13462,1630.1,1629.8,8.258523]
[1744666265149,6.13462,1630.1,1629.8,14.394133]
[1744666265953,6.13462,1630.1,1629.8,8.258523]
[1744666266254,12.26937,1630.1,1629.8,8.258523]
[1744666266666,6.69,1630.1,1629.6,0.8164]
[1744666266949,6.13615,1629.7,1629.4,13.09063]
[1744666267150,12.27181,1629.8,1629.5,6.13684]
[1744666268283,12.27169,1629.8,1629.5,6.13684]
[1744666268482,12.27174,1629.8,1629.5,6.13684]
[1744666269279,12.27174,1629.8,1629.4,13.09076]
[1744666269460,12.27174,1629.8,1629.4,14.69980065]
[1744666270486,6.68541,1629.9,1629.4,2.42544065]
[1744666270664,12.82108,1629.9,1629.5,12.33461539]
[1744666270866,6.13575,1629.8,1629.5,6.13648]
[1744666271171,12.27168,1629.8,1629.5,6.13648]
[1744666271377,6.13575,1629.8,1629.5,6.13648]
[1744666271578,12.27168,1629.8,1629.5,6.13648]
[1744666271984,6.13575,1629.8,1629.5,6.13648]
[1744666272290,6.13575,1629.8,1629.4,8.56256065]
[1744666272591,6.13611,1629.7,1629.4,8.56256065]
[1744666272970,12.27236,1629.7,1629.4,8.56256065]
[1744666273491,6.13611,1629.7,1629.4,8.56256065]
[1744666273697,12.27238,1629.7,1629.4,8.56256065]
[1744666274598,6.13611,1629.7,1629.4,14.69968065]
[1744666274893,12.2724,1629.7,1629.4,8.56256065]
[1744666275902,12.27241,1629.7,1629.4,8.56254065]
[1744666276200,6.13611,1629.7,1629.4,8.56254065]
[1744666276562,6.13611,1629.7,1629.4,14.69965065]
[1744666277565,6.13611,1629.7,1629.4,14.69964065]
[1744666277863,6.13611,1629.7,1629.4,0.8164]
[1744666278167,6.13659,1629.6,1629.4,0.8164]
[1744666279894,12.27252,1629.7,1629.4,6.95351]
[1744666280895,12.27252,1629.7,1629.4,6.13711]
[1744666281105,6.13647,1629.6,1629.4,6.13711]
[1744666281612,6.13685,1629.5,1629.3,0.8247]
[1744666281896,0.8,1629.5,1629.3,6.96229]
[1744666283575,12.2733,1629.6,1629.3,6.96229]
[1744666289312,0.55,1629.6,1629.4,6.13706]
[1744666289489,6.68647,1629.6,1629.3,13.09966]
[1744666289691,12.82317,1629.6,1629.3,6.96218]
[1744666290093,6.68647,1629.6,1629.3,13.09968]
[1744666292421,6.68647,1629.6,1629.3,13.09966]
[1744666292632,12.82308,1629.6,1629.3,6.96218]
[1744666293589,6.68647,1629.6,1629.3,6.96218]
[1744666294000,6.68647,1629.6,1629.3,13.09966]
[1744666294705,6.68647,1629.6,1629.3,6.96218]
[1744666294881,12.82326,1629.6,1629.3,6.96218]
[1744666295082,6.68647,1629.6,1629.3,13.09968]
[1744666297494,6.68647,1629.6,1629.3,6.96218]
[1744666299718,6.68647,1629.6,1629.3,13.09966]
[1744666300015,12.82315,1629.6,1629.3,6.96218]
[1744666300821,12.82315,1629.6,1629.3,6.13748]
[1744666302023,0.8,1629.5,1629.3,6.13748]
[1744666303327,12.82315,1629.6,1629.3,6.13748]
[1744666306104,6.68647,1629.6,1629.3,12.27496]
[1744666306626,6.68647,1629.6,1629.3,12.27498]
[1744666307529,12.82309,1629.6,1629.3,6.13748]
[1744666308234,6.68647,1629.6,1629.3,12.27498]
[1744666309345,6.14,1629.7,1629.6,6.13647]
[1744666309628,5.247,1630.1,1629.9,6.1351]
[1744666309928,5.247,1630.1,1629.9,6.951]
[1744666312429,11.38171,1630.1,1629.8,6.1356]
[1744666312616,17.5165,1630.1,1629.8,6.1356]
[1744666312934,6.685,1630.0,1629.7,13.08792]
[1744666313538,17.5266696,1630.1,1629.8,6.13556]
[1744666313702,23.6614296,1630.1,1629.8,6.13556]
[1744666314510,6.68514,1630.0,1629.7,6.95187]
[1744666315533,6.68514,1630.0,1629.7,13.08784]
[1744666315733,6.68514,1630.0,1629.7,6.95187]
[1744666316534,6.68514,1630.0,1629.7,13.08785]
[1744666321437,6.68514,1630.0,1629.7,13.08787]
[1744666322141,15.24135596,1630.0,1629.7,6.95197]
[1744666327756,6.13534,1629.9,1629.7,6.95197]
[1744666328154,6.13534,1629.9,1629.7,0.8159]
[1744666328955,0.8,1629.8,1629.7,0.8159]
[1744666329142,6.13534,1629.9,1629.7,0.8159]
[1744666331243,12.27093,1629.9,1629.7,0.8159]
[1744666331429,6.13642,1629.7,1629.3,6.91679]
[1744666331623,6.13657,1629.6,1629.3,6.91679]
[1744666331812,6.1371,1629.5,1629.3,0.7795]
[1744666332025,6.13737,1629.4,1629.1,6.91778]
[1744666332226,6.13772,1629.3,1629.0,7.44343]
[1744666332426,12.27627,1629.2,1628.9,6.13909]
[1744666332628,6.13802,1629.2,1628.9,6.13898]
[1744666332870,6.13802,1629.2,1628.9,12.27795]
[1744666334378,11.38268,1629.3,1629.0,6.13873]
[1744666334869,11.38268,1629.3,1628.9,6.13897]
[1744666335058,6.13809,1629.2,1628.9,6.13897]
[1744666335873,12.27643,1629.2,1628.8,13.05972]
[1744666336082,6.13809,1629.2,1628.8,8.52615586]
[1744666336431,6.454,1628.9,1628.3,0.46904046]
[1744666336732,9.69099,1628.4,1628.3,0.46904046]
[1744666337085,6.69175,1628.2,1628.1,0.4461895]
[1744666337981,9.69175,1628.2,1628.1,0.4461895]
[1744666338772,12.69048863,1628.2,1628.1,0.4461895]
[1744666342435,18.83048863,1628.2,1628.1,0.4461895]
[1744666342637,21.32769149,1628.2,1628.1,0.4461895]
[1744666345143,21.32769149,1628.2,1628.1,9.5e-06]
[1744666347885,22.35330883,1628.2,1628.1,9.5e-06]
[1744666348092,22.3460125,1628.2,1628.1,9.5e-06]
[1744666348457,22.3460125,1628.2,1627.1,0.05]
[1744666348458,6.14552,1627.2,1627.1,0.05]
[1744666348659,20.99099726,1627.2,1627.1,0.05]
[1744666348991,17.99225863,1627.2,1627.1,0.05]
[1744666349176,0.55,1627.2,1627.1,0.05]
[1744666349363,2.99873863,1627.5,1627.2,6.14516]
[1744666349567,0.55,1627.5,1627.3,6.94821]
[1744666349887,0.55,1627.5,1627.3,0.8032]
[1744666350460,6.69454,1627.5,1627.3,0.8032]
[1744666350957,14.95271486,1627.5,1627.3,0.8032]
[1744666351160,6.14511,1627.4,1627.1,0.8265]
[1744666351369,12.29022,1627.4,1627.1,0.8265]
[1744666351569,15.28895863,1627.4,1627.1,0.8265]
[1744666351765,6.1452,1627.3,1627.1,0.8265]
[1744666352192,6.69552,1627.2,1627.1,0.05]
[1744666352389,14.99325863,1627.2,1627.1,0.05]
[1744666352593,17.99325863,1627.2,1627.1,0.05]
[1744666352964,20.99199726,1627.2,1627.1,0.05]
[1744666353196,6.69779,1626.6,1626.5,0.3961895]
[1744666353369,3.0,1627.1,1626.5,1.1788895]
[1744666353575,0.55,1627.0,1626.8,6.14675]
[1744666353769,0.55,1627.0,1626.9,6.14665]
[1744666354692,0.55,1627.0,1626.8,6.92971]
[1744666355198,6.69653,1627.0,1626.8,0.7827]
[1744666355402,6.69606,1627.1,1626.8,0.7827]
[1744666355730,12.84229,1627.1,1626.8,0.7827]
[1744666355899,0.55,1627.1,1626.8,0.7827]
[1744666356106,0.55,1626.9,1626.6,6.95964]
[1744666356401,11.99688,1626.9,1626.6,6.95964]
[1744666356597,5.85,1626.9,1626.6,6.95981]
[1744666356778,5.85,1626.9,1626.7,6.1473]
[1744666357609,5.85,1626.9,1626.6,13.10749]
[1744666357974,5.85,1626.9,1626.6,13.10744]
[1744666358304,13.196331,1626.9,1626.6,6.95976]
[1744666358504,7.049641,1626.9,1626.6,6.95976]
[1744666358711,5.85,1626.9,1626.7,6.14741]
[1744666359003,11.99676,1626.9,1626.6,6.95976]
[1744666359903,0.55,1626.7,1626.6,0.8121]
[1744666360075,0.55,1626.7,1626.6,6.95989]
[1744666360405,0.55,1626.7,1626.6,0.8121]
[1744666361071,0.55,1626.7,1626.6,6.95989]
[1744666361276,5.3,1626.9,1626.6,6.95981]
[1744666361503,5.3,1626.9,1626.7,6.14735]
[1744666361799,5.3,1626.9,1626.8,6.14703]
[1744666362789,5.3,1626.9,1626.7,12.29466]
[1744666363133,5.3,1626.9,1626.7,6.14731]
[1744666363293,5.3,1626.9,1626.7,6.1473]
[1744666363496,8.302,1627.0,1626.8,6.14687]
[1744666364131,8.302,1627.0,1626.7,12.2946]
[1744666364529,14.4483,1627.0,1626.7,6.1473]
[1744666364823,16.65961639,1627.0,1626.7,6.14728]
[1744666365023,16.65961639,1627.0,1626.7,12.29457]
[1744666365229,11.35761639,1627.0,1626.7,12.29457]
[1744666365430,16.65961639,1627.0,1626.7,12.29457]
[1744666365791,11.35761639,1627.0,1626.7,12.29457]
[1744666365997,11.35761639,1627.0,1626.7,6.14728]
[1744666366411,5.21131639,1627.0,1626.8,6.147]
[1744666366894,3.0,1627.0,1626.8,6.147]
[1744666367133,3.0,1627.0,1626.8,6.14692]
[1744666368308,3.0,1627.0,1626.6,0.8121]
[1744666368309,6.27087386,1627.1,1626.9,6.90974]
[1744666368638,13.26107386,1627.1,1626.9,0.7632]
[1744666368801,18.56307386,1627.1,1626.9,0.7632]
[1744666370127,12.41696386,1627.1,1626.9,0.7632]
[1744666370332,18.56300386,1627.1,1626.9,0.7632]
[1744666370528,0.96887386,1627.1,1626.9,6.90984]
[1744666370747,5.302,1627.1,1626.9,13.05638]
[1744666370928,5.302,1627.1,1626.9,6.90974]
[1744666371136,5.302,1627.1,1626.9,13.05628]
[1744666371432,5.302,1627.1,1626.9,6.90973]
[1744666372733,6.14628,1627.0,1626.7,13.04604]
[1744666375640,17.59433,1627.1,1626.8,6.14697]
[1744666375807,19.54346487,1627.1,1626.8,6.14697]
[1744666381343,13.39722487,1627.1,1626.8,12.29394]
[1744666381645,19.54343487,1627.1,1626.8,6.14697]
[1744666383442,13.39722487,1627.1,1626.8,6.14693]
[1744666383741,13.39722487,1627.1,1626.8,12.29384]
[1744666383928,13.39722487,1627.1,1626.8,12.29382]
[1744666384107,13.39715487,1627.1,1626.8,6.14691]
[1744666384943,7.25113487,1627.1,1626.9,0.8171]
[1744666385131,13.39706487,1627.1,1626.9,0.8171]
[1744666385335,13.39706487,1627.1,1626.9,6.96371]
[1744666385336,7.25113487,1627.1,1626.9,6.96371]
[1744666386543,13.39716487,1627.1,1626.9,0.8171]
[1744666386747,19.54323487,1627.1,1626.9,0.8171]
[1744666387552,13.39716487,1627.1,1626.8,13.07524]
[1744666388751,13.39704487,1627.1,1626.8,13.07524]
[1744666389216,7.25113487,1627.1,1626.9,6.14659]
[1744666389417,7.25113487,1627.1,1626.8,6.92831]
[1744666389740,7.25113487,1627.1,1626.8,13.07522]
[1744666389942,7.25113487,1627.1,1626.9,6.14655]
[1744666390130,7.25113487,1627.1,1626.9,12.29309]
[1744666390330,7.25113487,1627.1,1626.9,6.14654]
[1744666390522,7.25113487,1627.1,1626.9,12.29309]
[1744666390942,16.81412486,1627.3,1627.1,6.14579]
[1744666390943,6.96290486,1627.3,1627.1,6.14579]
[1744666391259,6.14,1627.6,1627.4,6.14445]
[1744666391430,11.574,1627.7,1627.5,6.14439]
[1744666391638,54.062,1627.9,1627.6,6.14387]
[1744666391822,54.062,1627.9,1627.8,6.14326]
[1744666392140,12.2849596,1627.9,1627.8,6.14326]
[1744666392321,6.14,1627.9,1627.8,6.14326]
[1744666392749,6.14,1627.9,1627.7,13.06836]
[1744666392955,6.14,1627.9,1627.7,6.92485]
[1744666394357,6.14,1627.9,1627.8,6.14326]
[1744666396856,5.434,1628.0,1627.8,6.14326]
[1744666397633,6.14352,1627.8,1627.5,0.7814]
[1744666397953,6.69417,1627.6,1627.3,0.8315]
[1744666398128,12.83854,1627.6,1627.2,0.8315]
[1744666398333,6.14444,1627.5,1627.2,0.8315]
[1744666398530,6.1448,1627.4,1627.0,3.8315]
[1744666398738,6.14531,1627.3,1627.0,2.67237486]
[1744666399032,12.29066,1627.3,1627.0,0.8315]
[1744666399241,6.69555,1627.2,1626.8,0.83995975]
[1744666399562,6.69557,1627.2,1626.8,0.83995975]
[1744666400166,12.84138,1627.2,1626.8,0.83995975]
[1744666400464,6.14706,1626.8,1626.6,0.7785]
[1744666400633,6.14697,1626.9,1626.6,0.7785]
[1744666401173,0.55,1626.7,1626.5,0.3961895]
[1744666401358,6.69771,1626.7,1626.5,0.3961895]
[1744666401558,6.14779,1626.6,1626.5,0.3961895]
[1744666401864,6.69779,1626.6,1626.5,0.3961895]
[1744666403834,8.597098,1626.6,1626.5,0.3961895]
[1744666404034,14.737098,1626.6,1626.5,0.3961895]
[1744666404233,17.737098,1626.6,1626.5,0.3961895]
[1744666404435,6.6993,1626.2,1626.1,0.05]
[1744666404643,12.0913,1626.2,1626.1,0.05]
[1744666404842,15.0913,1626.2,1626.1,0.05]
[1744666406511,21.2313,1626.2,1626.1,1e-05]
[1744666406791,9.70308,1625.2,1625.1,0.05]
[1744666406969,15.09608,1625.2,1625.1,0.05]
[1744666407355,5.393,1625.5,1625.1,0.05]
[1744666407558,9.70257,1625.4,1625.1,0.05]
[1744666408058,0.55,1625.4,1625.1,12.35663]
[1744666408397,0.55,1625.4,1625.1,6.20333]
[1744666408551,5.393,1625.5,1625.2,6.15281]
[1744666408998,5.393,1625.5,1625.2,12.30576]
[1744666409180,0.55,1625.4,1625.1,6.20346]
[1744666409384,0.55,1625.4,1625.1,6.20332]
[1744666409596,0.55,1625.4,1625.2,12.30569]
[1744666409801,0.55,1625.4,1625.2,6.15275]
[1744666410480,0.55,1625.4,1625.1,6.20332]
[1744666411149,0.55,1625.4,1625.1,12.35664]
[1744666412007,0.55,1625.4,1625.2,6.15298]
[1744666412206,0.55,1625.4,1625.2,6.15291]
[1744666412520,0.55,1625.4,1625.1,6.20333]
[1744666412670,0.55,1625.4,1625.1,12.35661]
[1744666413115,0.55,1625.4,1625.1,12.35655]
[1744666413910,59.4686,1625.6,1625.2,6.1528]
[1744666414212,6.70195,1625.5,1625.2,6.1528]
[1744666414410,10.97567633,1625.5,1625.2,6.1528]
[1744666414624,10.97567633,1625.5,1625.1,6.20343]
[1744666414625,6.47079711,1626.0,1625.6,6.1512]
[1744666414827,6.47079711,1626.0,1625.4,6.15233]
[1744666414828,11.536,1626.2,1625.4,6.15233]
[1744666414993,0.32056928,1626.6,1626.3,6.1487]
[1744666415180,0.614753,1626.6,1626.5,6.14817]
[1744666415522,4.07553647,1626.8,1626.7,6.14741]
[1744666415897,4.07553647,1626.8,1626.6,6.14766]
[1744666416219,4.07553647,1626.8,1626.7,6.14741]
[1744666416580,4.07553647,1627.2,1626.7,6.14741]
[1744666416776,4.07553647,1627.2,1626.5,3.78103863]
[1744666417023,6.55359365,1627.1,1626.6,6.14775]
[1744666417676,6.14639,1627.0,1626.5,13.99599386]
[1744666417872,6.14666,1626.9,1626.5,0.7823]
[1744666418612,6.14666,1626.9,1626.5,6.93044]
[1744666418916,6.14666,1626.9,1626.5,0.7823]
[1744666419221,6.14666,1626.9,1626.5,6.93044]
[1744666419801,6.14666,1626.9,1626.5,6.93033]
[1744666420142,6.14684,1626.9,1626.5,13.07831]
[1744666420493,12.29372,1626.9,1626.5,6.93028]
[1744666420733,6.14684,1626.9,1626.5,6.93028]
[1744666420954,6.69639,1627.0,1626.6,6.14746]
[1744666421225,0.55,1627.1,1626.8,6.14685]
[1744666421412,0.55,1627.1,1626.7,6.14741]
[1744666421413,6.69606,1627.1,1626.7,12.29482]
[1744666421614,6.69606,1627.1,1626.7,6.14726]
[1744666421988,6.14599,1627.1,1626.8,6.14684]
[1744666422535,0.55,1627.0,1626.7,0.62087244]
[1744666422733,6.14678,1626.9,1626.7,0.62087244]
[1744666422893,6.14602,1627.1,1626.7,6.76798244]
[1744666423231,12.09178,1627.2,1626.8,6.14684]
[1744666423434,6.14596,1627.1,1626.7,6.14731]
[1744666423591,0.55,1627.1,1626.6,6.14773]
[1744666423801,12.29328,1627.0,1626.6,12.29539]
[1744666424000,12.29328,1627.0,1626.6,12.29532]
[1744666424211,6.14666,1626.9,1626.6,6.14766]
[1744666424609,6.14664,1627.0,1626.6,6.14763]
[1744666424804,12.29315,1627.0,1626.6,12.2953]
[1744666425534,6.14655,1627.0,1626.7,6.14734]
[1744666425858,6.14648,1627.0,1626.7,6.14734]
[1744666426203,12.29291,1627.0,1626.6,12.29542]
[1744666427736,6.14643,1627.0,1626.7,6.14728]
[1744666428445,12.29294,1627.0,1626.7,6.14728]
[1744666428609,6.14643,1627.0,1626.7,6.14734]
[1744666428797,12.29305,1627.0,1626.7,6.14734]
[1744666428999,6.14643,1627.0,1626.7,6.14734]
[1744666429201,6.14643,1627.0,1626.7,6.1473]
[1744666429399,6.69594,1627.1,1626.7,6.14729]
[1744666429607,6.14594,1627.1,1626.7,6.14728]
[1744666429812,12.29204,1627.1,1626.8,6.14703]
[1744666430014,6.14594,1627.1,1626.8,6.14703]
[1744666430359,6.14594,1627.1,1626.8,6.14692]
[1744666432354,12.2921,1627.1,1626.8,6.14692]
[1744666432526,14.72991,1627.1,1626.8,6.14692]
[1744666432847,8.58375,1627.1,1626.8,6.14692]
[1744666433250,14.72988,1627.1,1626.8,6.14692]
[1744666433454,6.14641,1627.0,1626.7,6.14728]
[1744666433815,6.14641,1627.0,1626.7,6.14735]
[1744666435556,8.58378,1627.1,1626.7,6.14731]
[1744666435930,6.14639,1627.0,1626.7,6.14731]
[1744666436759,12.29285,1627.0,1626.7,6.14731]
[1744666436959,12.29285,1627.0,1626.7,6.14729]
[1744666436960,6.14639,1627.0,1626.7,6.14729]
[1744666437165,6.14638,1627.0,1626.7,12.2946]
[1744666437374,12.29299,1627.0,1626.6,6.14745]
[1744666437965,12.29299,1627.0,1626.7,6.14739]
[1744666438138,6.14638,1627.0,1626.7,6.14739]
[1744666438469,6.14638,1627.0,1626.7,6.14729]
[1744666438872,6.14638,1627.0,1626.7,12.29459]
[1744666439056,12.29282,1627.0,1626.7,6.14729]
[1744666439255,12.29281,1627.0,1626.7,6.14729]
[1744666442449,7.619442,1627.0,1626.7,6.14729]
[1744666442776,7.619442,1627.0,1626.7,12.29459]
[1744666442972,7.619442,1627.0,1626.6,6.14767]
[1744666443182,1.473062,1627.0,1626.5,0.7823]
[1744666443351,6.14636,1627.0,1626.7,6.1473]
[1744666443680,12.2928,1627.0,1626.7,6.1473]
[1744666443983,6.14636,1627.0,1626.7,6.1473]
[1744666444276,12.29203,1627.1,1626.7,6.1473]
[1744666444433,12.29218,1627.1,1626.7,6.1473]
[1744666444630,14.743098,1627.1,1626.7,6.1473]
[1744666444848,14.743098,1627.1,1626.7,12.2946]
[1744666445434,14.742908,1627.1,1626.8,6.14697]
[1744666445937,14.742978,1627.1,1626.8,6.14692]
[1744666446437,14.742928,1627.1,1626.8,6.14692]
[1744666447680,6.14633,1627.0,1626.7,12.29466]
[1744666449293,6.14,1627.2,1627.0,6.14628]
[1744666449436,5.527,1627.3,1627.1,6.14572]
[1744666449653,5.527,1627.3,1627.1,12.29144]
[1744666449855,0.55,1627.4,1627.1,12.29144]
[1744666450179,2.692908,1627.4,1627.2,6.14552]
[1744666450361,2.692908,1627.4,1627.2,6.14541]
[1744666450764,18.42908,1627.5,1627.2,12.2908]
[1744666450765,12.28451,1627.5,1627.2,12.2908]
[1744666451067,12.28451,1627.5,1627.2,6.14539]
[1744666451267,12.28451,1627.5,1627.2,12.2908]
[1744666451481,12.28451,1627.5,1627.2,6.14539]
[1744666451952,6.14,1627.5,1627.1,6.1459]
[1744666452153,5.527,1627.6,1627.4,6.14477]
[1744666453483,5.527,1627.6,1627.5,6.14439]
[1744666453657,5.527,1627.6,1627.4,6.14467]
[1744666453854,47.928,1627.8,1627.6,6.14398]
[1744666454094,8.526,1627.9,1627.6,6.14398]
[1744666454399,20.81208,1627.9,1627.6,6.14398]
[1744666454607,14.66902,1627.9,1627.6,6.14398]
[1744666454970,20.81209,1627.9,1627.6,6.14398]
[1744666455169,14.66902,1627.9,1627.6,6.14398]
[1744666455404,14.66902,1627.9,1627.6,12.28788]
[1744666455935,20.8121,1627.9,1627.6,7.372678]
[1744666456109,14.66902,1627.9,1627.6,12.28778]
[1744666457159,5.526,1627.9,1627.7,6.14361]
[1744666457710,3.0,1628.1,1627.5,6.92778]
[1744666457874,3.0,1628.1,1627.8,6.14326]
[1744666458075,3.0,1628.1,1627.8,12.28652]
[1744666458899,5.526,1628.2,1628.0,6.14248]
[1744666459055,5.526,1628.2,1628.0,6.14237]
[1744666459258,0.05,1628.4,1628.1,12.28413]
[1744666459461,0.05,1628.4,1628.0,6.1425]
[1744666459704,0.05,1628.4,1628.2,6.14161]
[1744666459904,0.05,1628.4,1628.3,6.14137]
[1744666460491,0.05,1628.4,1628.3,6.89737]
[1744666460702,0.05,1628.4,1628.3,6.95877685]
[1744666461013,0.05,1628.4,1628.3,0.06140685]
[1744666461177,6.1415,1628.3,1628.0,6.89836]
[1744666461378,6.1415,1628.3,1628.0,6.14236]
[1744666461610,6.1415,1628.3,1627.9,12.2856]
[1744666461611,12.90234,1628.3,1627.9,12.2856]
[1744666462013,12.90234,1628.3,1628.0,6.14249]
[1744666462216,6.76065,1628.3,1628.0,6.14249]
[1744666462419,6.76065,1628.3,1628.0,6.14236]
[1744666462623,12.90222,1628.3,1628.0,6.14236]
[1744666462981,6.76065,1628.3,1628.0,6.14236]
[1744666463280,6.1415,1628.3,1628.0,6.14236]
[1744666464123,6.1415,1628.3,1628.0,6.14235]
[1744666464524,6.19105,1628.4,1628.1,6.14197]
[1744666464726,12.33226,1628.4,1628.1,6.14197]
[1744666464910,6.19105,1628.4,1628.1,12.28398]
[1744666465110,6.19105,1628.4,1628.1,6.14197]
[1744666465421,12.33235,1628.4,1628.0,12.28484]
[1744666465598,12.33235,1628.4,1628.0,6.14239]
[1744666465786,12.33235,1628.4,1628.0,12.28478]
[1744666465986,12.33223,1628.4,1628.0,12.28478]
[1744666466210,6.14138,1628.3,1628.0,6.14239]
[1744666466485,6.14145,1628.3,1628.0,6.14236]
[1744666466796,12.2831,1628.3,1627.9,12.28572]
[1744666467013,6.14145,1628.3,1628.0,6.14249]
[1744666467234,6.14145,1628.3,1628.0,12.28488]
[1744666467434,6.14145,1628.3,1628.0,6.14239]
[1744666467637,6.14145,1628.3,1628.0,12.28478]
[1744666467928,7.479273,1628.4,1628.1,6.14179]
[1744666467929,1.338223,1628.4,1628.1,6.14179]
[1744666468127,0.05,1628.4,1628.1,6.14179]
[1744666468297,6.1913,1628.4,1628.1,6.14179]
[1744666468728,12.3326,1628.4,1628.1,6.14179]
[1744666468897,6.14149,1628.3,1628.0,6.14235]
[1744666470326,6.19106,1628.4,1628.0,6.14235]
[1744666470633,6.14137,1628.3,1628.0,12.28475]
[1744666474044,7.165166,1628.4,1628.1,12.28413]
[1744666474545,0.05,1628.4,1628.2,0.7877]
[1744666474776,0.05,1628.4,1628.3,6.14137]
[1744666478183,0.05,1628.4,1628.3,6.92907]
[1744666480048,0.05,1628.4,1628.3,6.99047722]
[1744666484074,0.05,1628.4,1628.3,0.7877]
[1744666484753,0.05,1628.4,1628.2,6.14174]
[1744666486989,0.05,1628.4,1628.1,6.91076]
[1744666487188,6.14141,1628.3,1627.9,6.91161]
[1744666487358,6.14181,1628.2,1627.9,6.91161]
[1744666489461,12.28294,1628.3,1627.9,6.91157]
[1744666489693,12.28294,1628.3,1628.0,6.14249]
[1744666489997,12.28294,1628.3,1627.9,13.05434]
[1744666490185,13.516234,1628.3,1627.9,13.05434]
[1744666490777,13.516234,1628.3,1628.0,6.1425]
[1744666491601,12.28294,1628.3,1628.0,6.1425]
[1744666492261,12.28294,1628.3,1627.9,13.05434]
[1744666493070,6.14141,1628.3,1628.0,6.14239]
[1744666493805,12.28293,1628.3,1628.0,6.14239]
[1744666493978,6.14141,1628.3,1628.0,6.14239]
[1744666495179,7.37466,1628.3,1628.0,6.14239]
[1744666496903,13.51616,1628.3,1628.0,6.14239]
[1744666499309,7.37466,1628.3,1628.0,6.14239]
[1744666500089,13.51618,1628.3,1628.0,6.14239]
[1744666501219,6.14177,1628.2,1627.9,6.91164]
[1744666501516,6.14177,1628.2,1627.9,13.05448]
[1744666501704,6.14177,1628.2,1627.9,6.91164]
[1744666502319,6.14177,1628.2,1627.9,13.05442]
[1744666502519,6.14177,1628.2,1627.9,13.05436]
[1744666504122,6.14177,1628.2,1627.9,6.91158]
[1744666504321,6.14177,1628.2,1627.9,13.05436]
[1744666504925,13.51625,1628.3,1628.0,6.14247]
[1744666505518,7.37473,1628.3,1628.0,6.14247]
[1744666505696,6.14148,1628.3,1628.0,6.1424]
[1744666506107,12.28298,1628.3,1628.0,6.1424]
[1744666515140,6.14148,1628.3,1628.0,12.2848]
[1744666515456,0.05,1628.4,1628.3,6.14137]
[1744666515606,0.05,1628.4,1628.3,6.20277687]
[1744666515947,0.05,1628.4,1628.3,8.07006969]
[1744666517141,0.05,1628.4,1628.3,8.87406969]
[1744666523255,0.05,1628.4,1628.3,11.88080798]
[1744666523553,6.13808,1629.2,1628.9,6.1389]
[1744666523714,10.21338647,1629.3,1629.0,6.13861]
[1744666524119,10.21332647,1629.3,1629.0,6.13861]
[1744666524321,10.21328647,1629.3,1628.9,6.1389]
[1744666524659,6.13803,1629.2,1628.9,6.1389]
[1744666524867,6.13803,1629.2,1628.9,12.27788]
[1744666525018,10.21328647,1629.3,1629.0,6.13869]
[1744666526040,16.35105647,1629.3,1629.0,6.13869]
[1744666526247,10.21328647,1629.3,1629.0,6.13869]
[1744666526447,16.35119647,1629.3,1629.0,6.13869]
[1744666526647,6.13803,1629.2,1628.9,7.449738]
[1744666526821,12.2763,1629.2,1629.0,0.7449738]
[1744666527151,6.13835,1629.1,1628.7,6.13975]
[1744666527346,10.76318647,1629.3,1628.5,3.80923829]
[1744666527347,6.13884,1629.0,1628.5,3.80923829]
[1744666527565,6.13884,1629.0,1628.7,6.1396]
[1744666527762,12.27773,1629.0,1628.7,6.1396]
[1744666528258,12.27847,1628.9,1628.6,4.0]
[1744666528424,6.13951,1628.8,1628.6,4.0]
[1744666528625,12.27924,1628.8,1628.5,0.8025]
[1744666528830,6.14004,1628.7,1628.4,6.14085]
[1744666529037,6.14004,1628.7,1628.4,11.9428618]
[1744666529558,6.14004,1628.7,1628.5,0.06139916]
[1744666530125,6.14004,1628.7,1628.4,6.14085]
[1744666531553,0.37307311,1628.6,1628.4,12.28171]
[1744666533686,0.37307311,1628.6,1628.5,6.14062]
[1744666534182,0.36548763,1628.6,1628.5,6.14062]
[1744666534481,12.27928,1628.8,1628.5,6.14062]
[1744666534783,13.507208,1628.8,1628.5,6.14062]
[1744666534984,0.36563914,1628.7,1628.5,6.14062]
[1744666537485,6.14078,1628.5,1628.2,6.14165]
[1744666537658,6.14177,1628.2,1627.9,0.7994]
[1744666537982,6.14287,1628.0,1627.6,6.14385]
[1744666538152,6.50738855,1627.9,1627.6,4.06143055]
[1744666538482,6.14363,1627.7,1627.6,4.0]
[1744666538676,6.14363,1627.7,1627.5,0.06143697]
[1744666538874,12.64805159,1627.7,1627.5,0.06143697]
[1744666539087,12.64805159,1627.7,1627.4,5.33]
[1744666539253,6.50417159,1627.7,1627.4,11.47471]
[1744666539583,6.50417159,1627.7,1627.4,11.47464]
[1744666540255,0.36054159,1627.7,1627.5,6.20581699]
[1744666540463,0.36054159,1627.7,1627.5,12.35007699]
[1744666540667,12.28598,1627.9,1627.5,12.28864]
[1744666540866,0.36038988,1627.6,1627.5,12.28852]
[1744666541189,0.36036072,1627.6,1627.5,6.14426]
[1744666541385,6.14339,1627.8,1627.5,6.20569714]
[1744666541578,0.36051243,1627.7,1627.5,6.20569714]